bitfinex/quotes_BTCUSD_20250727
["timestamp","ask_amount","ask_price","bid_price","bid_amount"]
[1753633954467,0.266724,119550.0,119540.0,0.40787729]
[1753633954555,0.59577534,119550.0,119540.0,0.24056928]
[1753633954779,0.10743076,119550.0,119540.0,0.42460774]
[1753633955022,0.1157949,119550.0,119540.0,0.44133777]
[1753633955666,0.10743027,119550.0,119540.0,0.44133777]
[1753633956113,0.08270171,119550.0,119540.0,0.44133777]
[1753633957431,0.22754585,119550.0,119540.0,0.44133777]
[1753633957654,0.22754578,119550.0,119540.0,0.44133777]
[1753633958399,0.23590999,119550.0,119540.0,0.44133777]
[1753633958606,0.24427427,119550.0,119540.0,0.44133777]
[1753633958808,0.25263862,119550.0,119540.0,0.44133777]
[1753633959229,0.22754578,119550.0,119540.0,0.44133777]
[1753633959639,0.21918171,119550.0,119540.0,0.44133777]
[1753633959854,0.22754592,119550.0,119540.0,0.44133777]
[1753633960058,0.21918171,119550.0,119540.0,0.44133777]
[1753633960260,0.08270171,119550.0,119540.0,0.50701777]
[1753633960470,0.21600171,119550.0,119540.0,0.90391834]
[1753633960898,0.21898171,119550.0,119540.0,0.58286777]
[1753633961092,0.21898171,119550.0,119540.0,0.90391834]
[1753633961285,0.08270171,119550.0,119540.0,0.90391834]
[1753633961698,0.21898171,119550.0,119540.0,0.90391834]
[1753633961927,0.08270171,119550.0,119540.0,0.58286777]
[1753633962216,0.21898171,119550.0,119540.0,0.90391834]
[1753633962556,0.21898171,119550.0,119540.0,0.58286777]
[1753633962804,0.22734578,119550.0,119540.0,0.50503777]
[1753633963036,0.21898171,119550.0,119540.0,0.50503777]
[1753633963446,0.22734585,119550.0,119540.0,0.43297286]
[1753633963661,0.23571013,119550.0,119540.0,0.44133777]
[1753633963918,0.24407455,119550.0,119540.0,0.44133777]
[1753633964586,0.25243911,119550.0,119540.0,0.44133777]
[1753633964789,0.23571013,119550.0,119540.0,0.44133777]
[1753633965172,0.24407455,119550.0,119540.0,0.44133777]
[1753633965407,0.24407448,119550.0,119540.0,0.50193777]
[1753633965618,0.25243904,119550.0,119540.0,0.44133777]
[1753633966034,0.26080367,119550.0,119540.0,0.44133777]
[1753633966817,0.25243904,119550.0,119540.0,0.44133777]
[1753633968247,0.42809768,119550.0,119540.0,0.32339999]
[1753633968456,0.73205548,119550.0,119540.0,0.34013058]
[1753633968663,0.73205548,119550.0,119540.0,0.3484957]
[1753633968831,0.40300491,119550.0,119540.0,0.3484957]
[1753633969036,0.41136961,119550.0,119540.0,0.3484957]
[1753633969239,0.27508961,119550.0,119540.0,0.35686075]
[1753633969527,0.41104961,119550.0,119540.0,0.35686075]
[1753633969998,0.2437556,119550.0,119540.0,0.36522524]
[1753633970392,0.41104961,119550.0,119540.0,0.36522524]
[1753633970600,0.41104961,119550.0,119540.0,0.34849535]
[1753633971031,0.41104961,119550.0,119540.0,0.00083726]
[1753633971032,0.73173562,119550.0,119540.0,0.00083726]
[1753633973136,0.41068505,119550.0,119540.0,0.00083726]
[1753633973409,0.73173562,119550.0,119540.0,0.00083726]
[1753633974260,0.41068505,119550.0,119540.0,0.00083726]
[1753633974519,0.73173562,119550.0,119540.0,0.00083726]
[1753633974746,1.07173562,119550.0,119540.0,0.00083726]
[1753633975404,1.17366194,119550.0,119540.0,0.00083726]
[1753633975621,1.18148756,119550.0,119540.0,0.00083726]
[1753633975836,1.18483856,119550.0,119540.0,0.00083726]
[1753633978279,1.18483187,119550.0,119540.0,0.00083726]
[1753633982541,1.33322343,119540.0,119530.0,1e-08]
[1753633982756,1.55547966,119540.0,119530.0,1e-08]
[1753633983407,1.23442909,119540.0,119530.0,1e-08]
[1753633983828,1.55847966,119540.0,119530.0,1e-08]
[1753633984038,1.55847671,119540.0,119530.0,1e-08]
[1753633984238,0.54113699,119530.0,119520.0,0.00191126]
[1753633984442,1.49065141,119530.0,119520.0,0.00205636]
[1753633984855,1.16960084,119530.0,119520.0,0.00205636]
[1753633985730,1.17060084,119530.0,119520.0,0.00205636]
[1753633986380,1.01799182,119530.0,119520.0,0.00205636]
[1753633986596,0.6097239,119530.0,119520.0,0.07783636]
[1753633986804,0.65280797,119530.0,119520.0,0.14213636]
[1753633987027,0.65280797,119530.0,119520.0,0.30947237]
[1753633987238,0.32957989,119530.0,119520.0,0.33778214]
[1753633987448,0.15421115,119530.0,119520.0,0.34614859]
[1753633987868,0.16257697,119530.0,119520.0,0.34614859]
[1753633988081,0.15421108,119530.0,119520.0,0.34614859]
[1753633988286,0.14584547,119530.0,119520.0,0.34614859]
[1753633988481,0.002,119530.0,119520.0,0.75167646]
[1753633988687,0.1374,119530.0,119520.0,0.75167646]
[1753633989362,0.1364,119530.0,119520.0,0.75167646]
[1753633989571,0.1374,119530.0,119520.0,0.75167646]
[1753633989725,0.1364,119530.0,119520.0,0.75167646]
[1753633989910,0.1374,119530.0,119520.0,0.75167646]
[1753633990114,0.1374,119530.0,119520.0,0.43062589]
[1753633990542,0.15413108,119530.0,119520.0,0.75167646]
[1753633990783,0.16249683,119530.0,119520.0,0.43062589]
[1753633991225,0.15413108,119530.0,119520.0,0.43062589]
[1753633991484,0.16249683,119530.0,119520.0,0.43062589]
[1753633994207,0.34655083,119530.0,119520.0,0.43062589]
[1753633994452,0.34655083,119530.0,119520.0,0.43062596]
[1753633994683,0.34655083,119530.0,119520.0,0.43899227]
[1753633994910,0.34655083,119530.0,119520.0,0.43062596]
[1753633995594,0.17922882,119530.0,119520.0,0.43062596]
[1753633995841,0.34655076,119530.0,119520.0,0.43899227]
[1753633996097,0.17086272,119530.0,119520.0,0.43899227]
[1753633996341,0.17922868,119530.0,119520.0,0.43899227]
[1753633997083,0.17086272,119530.0,119520.0,0.43899227]
[1753633997311,0.002,119530.0,119520.0,1.32731614]
[1753633997784,0.002,119530.0,119520.0,2.50182014]
[1753633998197,0.001,119530.0,119520.0,2.50182014]
[1753633998629,0.001,119530.0,119520.0,2.50382014]
[1753633999682,0.00729171,119550.0,119540.0,0.25440337]
[1753633999869,0.00729171,119550.0,119540.0,0.25636337]
[1753634000114,0.00729171,119550.0,119540.0,0.33018337]
[1753634000751,0.00729171,119550.0,119540.0,0.33339337]
[1753634001826,0.01765585,119550.0,119540.0,0.33018337]
[1753634002040,0.09561585,119550.0,119540.0,0.25440337]
[1753634002248,0.08725171,119550.0,119540.0,0.25440337]
[1753634002552,0.08429171,119550.0,119540.0,0.33018337]
[1753634002762,0.09265585,119550.0,119540.0,0.33018337]
[1753634002894,0.09265578,119550.0,119540.0,0.33018337]
[1753634004221,0.08429171,119550.0,119540.0,0.35479816]
[1753634004430,0.09265578,119550.0,119540.0,0.35479816]
[1753634004653,0.08429171,119550.0,119540.0,0.35479816]
[1753634005109,0.00929171,119550.0,119540.0,0.33806813]
[1753634005373,0.27708898,119550.0,119540.0,0.18403874]
[1753634005763,0.26872477,119550.0,119540.0,0.192404]
[1753634005960,0.26036035,119550.0,119540.0,0.17567341]
[1753634006184,0.26036035,119550.0,119540.0,0.19240386]
[1753634006543,0.26872477,119550.0,119540.0,0.26566898]
[1753634007185,0.26036035,119550.0,119540.0,0.25730386]
[1753634008466,0.26036035,119550.0,119540.0,0.19240386]
[1753634008606,0.25199572,119550.0,119540.0,0.18403867]
[1753634008818,0.25199572,119550.0,119540.0,0.17567341]
[1753634009049,0.00836526,119540.0,119530.0,0.39146699]
[1753634009253,0.08260526,119540.0,119530.0,0.39353699]
[1753634009466,0.08260526,119540.0,119530.0,0.46140699]
[1753634010044,0.09097045,119540.0,119530.0,0.46140699]
[1753634010479,0.09097045,119540.0,119530.0,0.46340699]
[1753634011015,0.02706557,119540.0,119530.0,0.46340699]
[1753634011731,0.02706536,119540.0,119530.0,0.46340699]
[1753634011900,0.03543062,119540.0,119530.0,0.46340699]
[1753634012098,0.21110396,119540.0,119530.0,0.46340699]
[1753634012404,0.03543062,119540.0,119530.0,0.46340699]
[1753634013896,0.21110396,119540.0,119530.0,0.46316699]
[1753634014138,0.01672961,119540.0,119530.0,0.78726688]
[1753634014384,0.14113171,119550.0,119540.0,0.19240337]
[1753634014642,0.03238427,119550.0,119540.0,0.65094375]
[1753634014879,0.01565578,119550.0,119540.0,0.65094375]
[1753634016447,0.00729171,119550.0,119540.0,0.65094375]
[1753634016890,0.00729171,119550.0,119540.0,0.73542105]
[1753634017794,0.00729171,119550.0,119540.0,1.29422205]
[1753634018046,0.00729171,119550.0,119540.0,1.40422205]
[1753634018722,0.00729171,119550.0,119540.0,1.08328167]
[1753634018933,0.00729171,119550.0,119540.0,1.07638605]
[1753634019798,0.00729171,119550.0,119540.0,0.75544567]
[1753634019980,0.00729171,119550.0,119540.0,1.07638605]
[1753634020178,0.00729171,119550.0,119540.0,0.75544567]
[1753634020380,0.00729171,119550.0,119540.0,1.13391905]
[1753634022080,0.08222897,119560.0,119550.0,0.19238727]
[1753634022281,0.08222897,119560.0,119550.0,0.86182495]
[1753634023417,0.08322897,119560.0,119550.0,0.54088457]
[1753634023618,0.08322897,119560.0,119550.0,0.86182495]
[1753634023834,0.08422897,119560.0,119550.0,0.86182495]
[1753634024076,0.08422897,119560.0,119550.0,0.54088457]
[1753634024292,0.08422897,119560.0,119550.0,0.66943768]
[1753634024498,0.08422897,119560.0,119550.0,0.86182495]
[1753634025476,0.08422897,119560.0,119550.0,0.54088457]
[1753634025879,0.08422897,119560.0,119550.0,0.86182495]
[1753634026084,0.08422897,119560.0,119550.0,0.54088457]
[1753634026304,0.08422897,119560.0,119550.0,0.86182495]
[1753634026515,0.08422897,119560.0,119550.0,0.54088457]
[1753634026788,0.08422897,119560.0,119550.0,0.86182495]
[1753634027204,0.15846897,119560.0,119550.0,0.86182495]
[1753634027649,0.08619897,119560.0,119550.0,0.86182495]
[1753634028091,0.08619897,119560.0,119550.0,0.54088457]
[1753634028754,0.08619897,119560.0,119550.0,0.86182495]
[1753634029570,0.08619897,119560.0,119550.0,0.54088457]
[1753634029779,0.16683241,119560.0,119550.0,0.54088457]
[1753634029984,0.17519599,119560.0,119550.0,0.54088457]
[1753634030191,0.16683241,119560.0,119550.0,0.54088457]
[1753634031092,0.08619897,119560.0,119550.0,0.54088457]
[1753634031313,0.09456241,119560.0,119550.0,0.54088457]
[1753634031459,0.16683241,119560.0,119550.0,0.54088457]
[1753634031874,0.17519599,119560.0,119550.0,0.54088457]
[1753634032078,0.10292599,119560.0,119550.0,0.54088457]
[1753634032303,0.09456248,119560.0,119550.0,0.54048457]
[1753634032561,0.66655695,119560.0,119550.0,0.0606]
[1753634032758,0.47941657,119560.0,119550.0,0.0606]
[1753634032985,0.47105285,119560.0,119550.0,0.0305]
[1753634033644,0.02509291,119550.0,119540.0,0.38840281]
[1753634033857,0.10247347,119550.0,119540.0,0.38840281]
[1753634034258,0.26976769,119550.0,119540.0,0.24623846]
[1753634034472,0.26976769,119550.0,119540.0,0.25460351]
[1753634034907,0.27807721,119550.0,119540.0,0.26296849]
[1753634035110,0.26976769,119550.0,119540.0,0.25460351]
[1753634035313,0.2614032,119550.0,119540.0,0.23787341]
[1753634035514,0.25303864,119550.0,119540.0,0.24623874]
[1753634035736,0.25303864,119550.0,119540.0,0.254604]
[1753634036011,0.25303864,119550.0,119540.0,0.23787341]
[1753634036606,0.25303864,119550.0,119540.0,0.0622]
[1753634037252,0.25303864,119550.0,119540.0,0.23787341]
[1753634037487,0.25303864,119550.0,119540.0,0.2462386]
[1753634038702,0.24467401,119550.0,119540.0,0.23787341]
[1753634038911,0.24467401,119550.0,119540.0,0.24623874]
[1753634040336,0.24467401,119550.0,119540.0,0.0622]
[1753634040754,0.24467401,119550.0,119540.0,0.23787341]
[1753634041320,0.24467401,119550.0,119540.0,0.24623874]
[1753634041530,0.24467401,119550.0,119540.0,0.0622]
[1753634041943,0.24467401,119550.0,119540.0,0.23787341]
[1753634042592,0.24467401,119550.0,119540.0,0.0705654]
[1753634042801,0.24467401,119550.0,119540.0,0.23787341]
[1753634043007,0.24467401,119550.0,119540.0,0.31495874]
[1753634043242,0.24467401,119550.0,119540.0,0.1392854]
[1753634043449,0.24467401,119550.0,119540.0,0.23787341]
[1753634043845,0.24467401,119550.0,119540.0,0.0622]
[1753634044076,0.24467401,119550.0,119540.0,0.0705654]
[1753634044512,0.24467401,119550.0,119540.0,0.23787341]
[1753634044718,0.24467401,119550.0,119540.0,0.24623867]
[1753634045255,0.24467401,119550.0,119540.0,0.23787341]
[1753634045457,0.24467401,119550.0,119540.0,0.24623874]
[1753634045907,0.08222897,119560.0,119540.0,0.38364573]
[1753634046128,0.00296344,119600.0,119590.0,0.78512292]
[1753634046335,0.13656344,119600.0,119590.0,1.3843906]
[1753634046559,0.13656344,119600.0,119590.0,0.7863106]
[1753634046804,0.13656344,119600.0,119590.0,1.6876726]
[1753634047278,0.05,119680.0,119630.0,0.18389999]
[1753634047495,0.00203,119640.0,119630.0,0.43544038]
[1753634047739,0.13379992,119640.0,119630.0,0.50617038]
[1753634047955,0.00019992,119640.0,119630.0,0.3806086]
[1753634048170,0.13379992,119640.0,119630.0,0.71691308]
[1753634048607,0.13375992,119640.0,119630.0,0.37925527]
[1753634048834,0.13375992,119640.0,119630.0,0.35584182]
[1753634049048,0.02675797,119640.0,119630.0,0.52302396]
[1753634049263,0.13520403,119640.0,119630.0,0.53138292]
[1753634049485,0.1435618,119640.0,119630.0,0.36420085]
[1753634049747,0.14352187,119640.0,119630.0,0.35584182]
[1753634049971,0.1688522,119640.0,119630.0,0.35584182]
[1753634050208,0.34272454,119640.0,119630.0,0.35581775]
[1753634050416,0.333787,119640.0,119630.0,0.28816733]
[1753634050623,0.32542895,119640.0,119630.0,0.28816733]
[1753634050839,0.32542895,119640.0,119630.0,0.28504733]
[1753634051067,0.32745895,119640.0,119630.0,0.28504733]
[1753634051505,0.32741895,119640.0,119630.0,0.28504733]
[1753634052167,0.32741895,119640.0,119630.0,0.2847638]
[1753634052533,0.19405895,119640.0,119630.0,0.2847638]
[1753634052759,0.32737895,119640.0,119630.0,0.2847638]
[1753634053177,0.33577274,119640.0,119630.0,0.28456386]
[1753634053611,0.32769274,119640.0,119630.0,0.28456386]
[1753634053993,0.32766638,119640.0,119630.0,0.28456386]
[1753634054199,0.33566638,119640.0,119630.0,0.28456386]
[1753634054811,0.20242638,119640.0,119630.0,0.28456386]
[1753634055024,0.35027283,119640.0,119630.0,0.26922383]
[1753634055268,0.35027283,119640.0,119630.0,0.2845318]
[1753634055799,0.34191478,119640.0,119630.0,0.2845318]
[1753634056354,0.335311,119640.0,119630.0,0.2825218]
[1753634056597,0.202191,119640.0,119630.0,0.66032207]
[1753634056843,0.333241,119640.0,119630.0,0.66032207]
[1753634057061,0.332241,119640.0,119630.0,0.66032207]
[1753634057496,0.20863397,119640.0,119630.0,0.66036817]
[1753634057708,0.333241,119640.0,119630.0,0.66036817]
[1753634057968,0.200161,119640.0,119630.0,0.66036817]
[1753634058199,0.333161,119640.0,119630.0,0.66036817]
[1753634058419,0.327161,119640.0,119630.0,0.2845779]
[1753634058649,0.329191,119640.0,119630.0,0.2845779]
[1753634058873,0.330191,119640.0,119630.0,0.2845779]
[1753634059103,0.16302283,119640.0,119630.0,0.2845779]
[1753634059317,0.1681045,119640.0,119630.0,0.66036817]
[1753634059581,0.33324211,119640.0,119630.0,0.66036817]
[1753634059818,0.35010359,119640.0,119630.0,0.66036817]
[1753634060055,0.18293542,119640.0,119630.0,0.66036817]
[1753634060260,0.18193542,119640.0,119630.0,0.66036817]
[1753634060481,0.34910359,119640.0,119630.0,0.66036817]
[1753634060700,0.35010359,119640.0,119630.0,0.66036817]
[1753634060918,0.34160044,119640.0,119630.0,0.66036817]
[1753634061129,0.20227267,119640.0,119630.0,0.66036817]
[1753634061304,0.33000469,119640.0,119630.0,0.09578296]
[1753634061551,0.38893469,119640.0,119630.0,0.01535407]
[1753634061990,0.38993469,119640.0,119630.0,0.01535407]
[1753634062205,0.72993469,119640.0,119630.0,4.61e-05]
[1753634062449,0.72993469,119640.0,119630.0,0.01534098]
[1753634062682,0.93073469,119640.0,119630.0,4.61e-05]
[1753634063146,0.93891335,119640.0,119630.0,4.61e-05]
[1753634064027,0.94591335,119640.0,119630.0,4.61e-05]
[1753634064418,0.94587335,119640.0,119630.0,4.61e-05]
[1753634064634,1.03035065,119640.0,119630.0,4.61e-05]
[1753634064845,1.06155065,119640.0,119630.0,4.61e-05]
[1753634065066,1.06265065,119640.0,119630.0,4.61e-05]
[1753634065759,1.05565065,119640.0,119630.0,4.61e-05]
[1753634065969,1.05455065,119640.0,119630.0,4.61e-05]
[1753634066186,0.92883065,119640.0,119630.0,4.61e-05]
[1753634066396,1.06151065,119640.0,119630.0,4.61e-05]
[1753634066603,0.92883065,119640.0,119630.0,4.61e-05]
[1753634066812,1.06147065,119640.0,119630.0,4.61e-05]
[1753634067024,0.92883065,119640.0,119630.0,4.61e-05]
[1753634067240,1.06147065,119640.0,119630.0,4.61e-05]
[1753634067446,1.07899974,119640.0,119630.0,4.61e-05]
[1753634067650,1.08009974,119640.0,119630.0,4.61e-05]
[1753634070484,0.36405613,119640.0,119630.0,4.61e-05]
[1753634070711,0.5518081,119640.0,119630.0,0.66718332]
[1753634070927,0.71431127,119640.0,119630.0,0.83718826]
[1753634071146,0.38266953,119640.0,119630.0,0.64656588]
[1753634071379,0.38266953,119640.0,119630.0,0.83882497]
[1753634071380,0.38266946,119640.0,119630.0,0.83882497]
[1753634071601,0.59010946,119640.0,119630.0,0.83046615]
[1753634071824,0.71427127,119640.0,119630.0,0.83966205]
[1753634072046,0.73098772,119640.0,119630.0,0.83130316]
[1753634072262,0.73098772,119640.0,119630.0,0.83966212]
[1753634072263,0.73102765,119640.0,119630.0,0.83966212]
[1753634072498,0.59846821,119640.0,119630.0,0.50275882]
[1753634072754,0.73102821,119640.0,119630.0,0.84664269]
[1753634072930,0.73102821,119640.0,119630.0,0.83828225]
[1753634073118,0.8897984,119640.0,119630.0,0.68622318]
[1753634073303,0.88981051,119640.0,119630.0,0.68623265]
[1753634073476,0.72264234,119640.0,119630.0,0.70295078]
[1753634073700,0.70592627,119640.0,119630.0,0.87849188]
[1753634073931,0.70592599,119640.0,119630.0,0.87013292]
[1753634074149,0.71439059,119640.0,119630.0,0.70295078]
[1753634074381,0.71435059,119640.0,119630.0,0.31886816]
[1753634074611,0.71435059,119640.0,119630.0,0.5111269]
[1753634074839,0.72270878,119640.0,119630.0,0.87013292]
[1753634075069,0.72270878,119640.0,119630.0,0.88685063]
[1753634075325,0.59022878,119640.0,119630.0,0.88685063]
[1753634075551,0.72274878,119640.0,119630.0,0.89520938]
[1753634075759,0.72274878,119640.0,119630.0,0.88685063]
[1753634075985,0.71439059,119640.0,119630.0,0.88685063]
[1753634076197,0.72274878,119640.0,119630.0,0.4351178]
[1753634076485,0.72274878,119640.0,119630.0,0.81920021]
[1753634076644,0.72274878,119640.0,119630.0,0.81920035]
[1753634076861,0.72274878,119640.0,119630.0,0.82755917]
[1753634077079,0.73110711,119640.0,119630.0,0.77701146]
[1753634077287,0.73110704,119640.0,119630.0,0.77701146]
[1753634077493,0.72274878,119640.0,119630.0,0.81627035]
[1753634077746,0.72274878,119640.0,119630.0,0.82462917]
[1753634077983,0.73110711,119640.0,119630.0,0.81627035]
[1753634078203,0.73110711,119640.0,119630.0,0.80791146]
[1753634078441,0.72274878,119640.0,119630.0,0.81920028]
[1753634078659,0.59022878,119640.0,119630.0,0.81920035]
[1753634078895,0.72258878,119640.0,119630.0,0.81084139]
[1753634079125,0.72258878,119640.0,119630.0,0.8024825]
[1753634079326,0.58187059,119640.0,119630.0,0.81084132]
[1753634079553,0.7309469,119640.0,119630.0,0.63530036]
[1753634079782,0.1566747,119640.0,119630.0,0.90367723]
[1753634080007,0.15656801,119640.0,119630.0,0.90367723]
[1753634080236,0.16492599,119640.0,119630.0,0.9036773]
[1753634080463,0.15656794,119640.0,119630.0,0.91203591]
[1753634080685,0.1482101,119640.0,119630.0,0.90367737]
[1753634080920,0.16492606,119640.0,119630.0,0.91203598]
[1753634081170,0.15656801,119640.0,119630.0,0.91203598]
[1753634081395,0.15800606,119640.0,119630.0,0.91203598]
[1753634081660,0.15700606,119640.0,119630.0,0.89531862]
[1753634081892,0.16538003,119640.0,119630.0,0.89531862]
[1753634082121,0.16638003,119640.0,119630.0,0.89531862]
[1753634082358,0.17473829,119640.0,119630.0,0.89531862]
[1753634082607,0.17373829,119640.0,119630.0,0.89531869]
[1753634082840,0.16538003,119640.0,119630.0,0.90367751]
[1753634083063,0.17473829,119640.0,119630.0,0.91203626]
[1753634083289,0.19009662,119640.0,119630.0,0.90367751]
[1753634083529,0.18309662,119640.0,119630.0,0.89531869]
[1753634083770,0.1663801,119640.0,119630.0,0.90367751]
[1753634083995,0.03262184,119640.0,119630.0,0.91203626]
[1753634084275,0.1733001,119640.0,119630.0,0.91203626]
[1753634084799,0.16494061,119640.0,119630.0,0.90367751]
[1753634085012,0.04933699,119640.0,119630.0,0.90367751]
[1753634085265,0.18165699,119640.0,119630.0,0.89531869]
[1753634085486,0.18165699,119640.0,119630.0,0.90367751]
[1753634085907,0.19001532,119640.0,119630.0,0.90367751]
[1753634086123,0.18165699,119640.0,119630.0,0.90367751]
[1753634086692,0.18165699,119640.0,119630.0,0.91203626]
[1753634086945,0.1732988,119640.0,119630.0,0.91203626]
[1753634087202,0.18165713,119640.0,119630.0,0.90367751]
[1753634087430,0.04933713,119640.0,119630.0,0.89531869]
[1753634087654,0.18165713,119640.0,119630.0,0.90370286]
[1753634087883,0.18165713,119640.0,119630.0,0.89534411]
[1753634088141,0.18165713,119640.0,119630.0,0.90370293]
[1753634088345,0.1732988,119640.0,119630.0,0.91206168]
[1753634088560,0.1732988,119640.0,119630.0,0.91206126]
[1753634088815,0.18165713,119640.0,119630.0,0.90370258]
[1753634089023,0.18165713,119640.0,119630.0,0.89534383]
[1753634089243,0.1816572,119640.0,119630.0,0.87996941]
[1753634089470,0.1732988,119640.0,119630.0,0.88832809]
[1753634089693,0.18165713,119640.0,119630.0,0.87996941]
[1753634090359,0.1732988,119640.0,119630.0,0.88832809]
[1753634090577,0.17329678,119640.0,119630.0,0.88832816]
[1753634090802,0.17329678,119640.0,119630.0,0.88832781]
[1753634091021,0.17329685,119640.0,119630.0,0.88832781]
[1753634091249,0.16493859,119640.0,119630.0,0.88832781]
[1753634091465,0.17329678,119640.0,119630.0,0.88832774]
[1753634092004,0.16493859,119640.0,119630.0,0.88832774]
[1753634092447,0.17329671,119640.0,119630.0,0.88832774]
[1753634093297,0.04097671,119640.0,119630.0,0.88832774]
[1753634093512,0.1816549,119640.0,119630.0,0.88539774]
[1753634093744,0.1816549,119640.0,119630.0,0.88539781]
[1753634093945,0.16493859,119640.0,119630.0,0.88832774]
[1753634094161,0.16547415,119640.0,119630.0,0.87996913]
[1753634094389,0.16547415,119640.0,119630.0,0.86868066]
[1753634094615,0.16547415,119640.0,119630.0,0.88539823]
[1753634094837,0.16547415,119640.0,119630.0,0.8853461]
[1753634095071,0.18219074,119640.0,119630.0,0.85350753]
[1753634095286,0.18219074,119640.0,119630.0,0.84514871]
[1753634095501,0.18219074,119640.0,119630.0,0.84514864]
[1753634095738,0.1900133,119640.0,119630.0,0.85350774]
[1753634095945,0.35718147,119640.0,119630.0,0.86186656]
[1753634096401,0.34882356,119640.0,119630.0,0.85350774]
[1753634096622,0.34882356,119640.0,119630.0,0.86186656]
[1753634096846,0.34882356,119640.0,119630.0,0.8618667]
[1753634097080,0.34882356,119640.0,119630.0,0.87022552]
[1753634097651,0.34882356,119640.0,119630.0,0.86186642]
[1753634097822,0.46325356,119640.0,119630.0,0.46569128]
[1753634098029,0.44653739,119640.0,119630.0,0.43479128]
[1753634098238,1.24514814,119640.0,119630.0,0.00088311]
[1753634098440,0.8940565,119640.0,119630.0,0.00088311]
[1753634100628,0.8929565,119640.0,119630.0,0.00088311]
[1753634101064,0.7606365,119640.0,119630.0,0.00088311]
[1753634101268,0.67206739,119640.0,119630.0,0.57719128]
[1753634101476,0.68878314,119640.0,119630.0,0.75273245]
[1753634101695,0.52161497,119640.0,119630.0,0.76109134]
[1753634101854,0.01590263,119640.0,119630.0,0.86540607]
[1753634102085,0.14036007,119640.0,119630.0,0.86540607]
[1753634103165,0.00808007,119640.0,119630.0,0.86540607]
[1753634103421,0.14036007,119640.0,119630.0,0.86540607]
[1753634104403,0.00808007,119640.0,119630.0,0.86540607]
[1753634104670,0.14036007,119640.0,119630.0,0.86540607]
[1753634104870,0.00808007,119640.0,119630.0,0.86540607]
[1753634105058,0.14036007,119640.0,119630.0,0.86540607]
[1753634105808,0.00808007,119640.0,119630.0,0.86540607]
[1753634106239,0.14036007,119640.0,119630.0,0.86540607]
[1753634107685,0.14036007,119640.0,119630.0,1.64973685]
[1753634107822,0.14036007,119640.0,119630.0,0.86540607]
[1753634108658,0.00808007,119640.0,119630.0,0.86540607]
[1753634108914,0.14036007,119640.0,119630.0,0.86540607]
[1753634109977,0.14036007,119640.0,119630.0,1.75973685]
[1753634109978,0.00808007,119640.0,119630.0,1.75973685]
[1753634110346,0.20808007,119640.0,119630.0,1.75973685]
[1753634110706,0.20108007,119640.0,119630.0,1.75973685]
[1753634111149,0.20708007,119640.0,119630.0,1.75973685]
[1753634111524,0.20808007,119640.0,119630.0,1.75973685]
[1753634111711,0.20808007,119640.0,119630.0,1.78978206]
[1753634112431,0.20808007,119640.0,119630.0,1.75973685]
[1753634112623,0.20108007,119640.0,119630.0,1.75973685]
[1753634112850,0.20008007,119640.0,119630.0,1.75973685]
[1753634113075,0.20708007,119640.0,119630.0,1.75973685]
[1753634113300,0.20708007,119640.0,119630.0,1.7682608]
[1753634113946,0.20708007,119640.0,119630.0,1.78570982]
[1753634114171,0.20708007,119640.0,119630.0,1.84464182]
[1753634114822,0.20808007,119640.0,119630.0,1.84464182]
[1753634115780,0.20008007,119640.0,119630.0,1.84464182]
[1753634116004,0.20008007,119640.0,119630.0,1.97688182]
[1753634116227,0.20108007,119640.0,119630.0,1.97688182]
[1753634116454,0.20708007,119640.0,119630.0,1.97688182]
[1753634116680,0.20708007,119640.0,119630.0,1.91794982]
[1753634117601,0.1959105,119640.0,119630.0,1.91794982]
[1753634117816,0.1949105,119640.0,119630.0,1.91794982]
[1753634118061,0.1889105,119640.0,119630.0,1.91794982]
[1753634118312,0.1959105,119640.0,119630.0,1.91794982]
[1753634119239,0.1899105,119640.0,119630.0,2.26487282]
[1753634119468,0.1959105,119640.0,119630.0,2.26487282]
[1753634119881,0.1959105,119640.0,119630.0,4.41494503]
[1753634120121,0.1959105,119640.0,119630.0,2.93234882]
[1753634121208,0.1949105,119640.0,119630.0,2.90346203]
[1753634121887,0.1949105,119640.0,119630.0,2.93234882]
[1753634122323,0.1949105,119640.0,119630.0,3.84550303]
[1753634122727,0.1959105,119640.0,119630.0,3.78181703]
[1753634124182,0.1959105,119640.0,119630.0,3.62916403]
[1753634124407,0.1959105,119640.0,119630.0,3.60161882]
[1753634124852,0.1959105,119640.0,119630.0,3.89809282]
[1753634125757,0.1959105,119640.0,119630.0,3.94831282]
[1753634125990,0.1959105,119640.0,119630.0,2.74960282]
[1753634126227,0.1899105,119640.0,119630.0,2.74960282]
[1753634126680,0.1959105,119640.0,119630.0,2.74960282]
[1753634126934,0.1959105,119640.0,119630.0,2.61736282]
[1753634127154,0.3142005,119640.0,119630.0,0.73137467]
[1753634127377,0.3132005,119640.0,119630.0,0.89700995]
[1753634127644,0.1998205,119640.0,119630.0,1.78427073]
[1753634127860,0.1978705,119640.0,119630.0,1.78641073]
[1753634128311,0.1978705,119640.0,119630.0,1.65421073]
[1753634128533,0.2008205,119640.0,119630.0,0.64136436]
[1753634128752,0.2008205,119640.0,119630.0,0.993556]
[1753634128969,0.3142005,119640.0,119630.0,0.88848614]
[1753634129968,0.48136867,119640.0,119630.0,0.88848614]
[1753634130213,0.3142005,119640.0,119630.0,0.88848614]
[1753634130426,0.32255834,119640.0,119630.0,0.88598614]
[1753634130625,0.3142005,119640.0,119630.0,0.88598614]
[1753634131312,0.32255827,119640.0,119630.0,0.88514913]
[1753634131539,0.32255827,119640.0,119630.0,0.8859858]
[1753634131777,0.3142005,119640.0,119630.0,0.8859858]
[1753634132009,0.32255827,119640.0,119630.0,0.8859858]
[1753634132256,0.3142005,119640.0,119630.0,0.8859858]
[1753634133533,0.3142005,119640.0,119630.0,0.53379416]
[1753634133779,0.32255827,119640.0,119630.0,0.8859858]
[1753634134228,0.49808435,119640.0,119630.0,0.71252719]
[1753634134456,0.49808435,119640.0,119630.0,0.7208858]
[1753634134723,0.48136867,119640.0,119630.0,0.71252719]
[1753634134961,0.49808498,119640.0,119630.0,0.0503993]
[1753634135426,0.49808498,119640.0,119630.0,0.40259094]
[1753634136300,0.49808498,119640.0,119630.0,0.58649121]
[1753634136783,0.49808498,119640.0,119630.0,0.23429957]
[1753634137042,0.49808498,119640.0,119630.0,0.57813218]
[1753634137316,0.48972651,119640.0,119630.0,0.60320878]
[1753634137575,0.48972658,119640.0,119630.0,0.64476739]
[1753634137984,0.48972658,119640.0,119630.0,0.6280501]
[1753634138228,0.4980847,119640.0,119630.0,0.6280501]
[1753634138459,0.4980847,119640.0,119630.0,0.61969121]
[1753634138667,0.4980847,119640.0,119630.0,0.6280501]
[1753634139087,0.50644282,119640.0,119630.0,0.27585846]
[1753634139301,0.49808463,119640.0,119630.0,0.6280501]
[1753634139518,0.49808463,119640.0,119630.0,0.27585846]
[1753634139714,0.49808463,119640.0,119630.0,0.63640892]
[1753634139920,0.49808456,119640.0,119630.0,0.63640892]
[1753634140136,0.50644268,119640.0,119630.0,0.6280501]
[1753634140347,0.50644268,119640.0,119630.0,0.63640892]
[1753634140555,0.50644268,119640.0,119630.0,0.6280501]